Workbook

Sheet Ergon >>>
A2: ACS Public Lighting pricing model for Ergon Energy
A3: Regulatory control period 1 July 2020 to 30 June 2025

Sheet Input Data
A1: Public Lighting Quantity Inputs | B1: Units | C1: 2020-21 | D1: 2021-22 | E1: 2022-23 | F1: 2023-24 | G1: 2024-25
A3: Opening Population Public Lights
A5: NPL1 (Ergon Owned & Operated)
A6: Major Conventional | B6: # | C6: 26804 | D6: 24714 | E6: 21939 | F6: 18662 | G6: 14876 | I6: Source: Ergon PL Opex review model. Allocation between NPL1 and NPL2 based on the 2018-19 volume ratio
A7: Minor Conventional | B7: # | C7: 69606 | D7: 64108 | E7: 56905 | F7: 48458 | G7: 38710 | I7: Source: Ergon PL Opex review model. Allocation between NPL1 and NPL2 based on the 2018-19 volume ratio
A8: Major LED | B8: # | C8: 1391 | D8: 3827 | E8: 6952 | F8: 10582 | G8: 14729 | I8: Source: Ergon PL Opex review model. Allocation between NPL1 and NPL2 based on the 2018-19 volume ratio
A9: Minor LED | B9: # | C9: 3419 | D9: 9425 | E9: 17153 | F9: 26142 | G9: 36445 | I9: Source: Ergon PL Opex review model. Allocation between NPL1 and NPL2 based on the 2018-19 volume ratio
A10: Total | B10: # | C10: =SUM(C6:C9) -> 101220 | D10: =SUM(D6:D9) -> 102074 | E10: =SUM(E6:E9) -> 102949 | F10: =SUM(F6:F9) -> 103844 | G10: =SUM(G6:G9) -> 104760
A12: NPL2 (Gifted & Ergon Operated)
A13: Major Conventional | B13: # | C13: 13044 | D13: 12027 | E13: 10677 | F13: 9082 | G13: 7239 | I13: Source: Ergon PL Opex review model. Allocation between NPL1 and NPL2 based on the 2018-19 volume ratio
A14: Minor Conventional | B14: # | C14: 33873 | D14: 31198 | E14: 27692 | F14: 23581 | G14: 18837 | I14: Source: Ergon PL Opex review model. Allocation between NPL1 and NPL2 based on the 2018-19 volume ratio
A15: Major LED | B15: # | C15: 677 | D15: 1863 | E15: 3383 | F15: 5150 | G15: 7167 | I15: Source: Ergon PL Opex review model. Allocation between NPL1 and NPL2 based on the 2018-19 volume ratio
A16: Minor LED | B16: # | C16: 1664 | D16: 4587 | E16: 8347 | F16: 12722 | G16: 17735 | I16: Source: Ergon PL Opex review model. Allocation between NPL1 and NPL2 based on the 2018-19 volume ratio
A17: Total | B17: # | C17: =SUM(C13:C16) -> 49258 | D17: =SUM(D13:D16) -> 49675 | E17: =SUM(E13:E16) -> 50099 | F17: =SUM(F13:F16) -> 50535 | G17: =SUM(G13:G16) -> 50978
A18: Total Opening Lights | B18: # | C18: =SUM(C10,C17) -> 150478 | D18: =SUM(D10,D17) -> 151749 | E18: =SUM(E10,E17) -> 153048 | F18: =SUM(F10,F17) -> 154379 | G18: =SUM(G10,G17) -> 155738
A20: Public Lights Additions by Type
A22: NPL1 (Ergon Owned & Operated)
A23: Major Conventional | B23: # | C23: 0 | D23: 0 | E23: 0 | F23: 0 | G23: 0
A24: Minor Conventional | B24: # | C24: 0 | D24: 0 | E24: 0 | F24: 0 | G24: 0
A25: Major LED | B25: # | C25: 2087 | D25: 2547 | E25: 3035 | F25: 3509 | G25: 4010
A26: Minor LED | B26: # | C26: 5165 | D26: 6325 | E26: 7545 | F26: 8723 | G26: 10015
A27: Total | B27: # | C27: =SUM(C23:C26) -> 7252 | D27: =SUM(D23:D26) -> 8872 | E27: =SUM(E23:E26) -> 10580 | F27: =SUM(F23:F26) -> 12232 | G27: =SUM(G23:G26) -> 14025
A29: NPL2 (Gifted & Ergon Operated)
A30: Major Conventional | B30: # | C30: 0 | D30: 0 | E30: 0 | F30: 0 | G30: 0
A31: Minor Conventional | B31: # | C31: 0 | D31: 0 | E31: 0 | F31: 0 | G31: 0
A32: Major LED | B32: # | C32: 1471 | D32: 1717 | E32: 1991 | F32: 2258 | G32: 2553
A33: Minor LED | B33: # | C33: 3580 | D33: 4208 | E33: 4899 | F33: 5561 | G33: 6335
A34: Total | B34: # | C34: =SUM(C30:C33) -> 5051 | D34: =SUM(D30:D33) -> 5925 | E34: =SUM(E30:E33) -> 6890 | F34: =SUM(F30:F33) -> 7819 | G34: =SUM(G30:G33) -> 8888
A35: Total Additions | B35: # | C35: =SUM(C27,C34) -> 12303 | D35: =SUM(D27,D34) -> 14797 | E35: =SUM(E27,E34) -> 17470 | F35: =SUM(F27,F34) -> 20051 | G35: =SUM(G27,G34) -> 22913
A37: Public Lights Disposals by Type
A39: NPL1 (Ergon Owned & Operated)
A40: Major Conventional | B40: # | C40: 1927 | D40: 2377 | E40: 2865 | F40: 3329 | G40: 3820
A41: Minor Conventional | B41: # | C41: 5010 | D41: 6150 | E41: 7340 | F41: 8498 | G41: 9770
A42: Major LED | B42: # | C42: 0 | D42: 0 | E42: 0 | F42: 0 | G42: 0
A43: Minor LED | B43: # | C43: 0 | D43: 0 | E43: 0 | F43: 0 | G43: 0
A44: Total | B44: # | C44: =SUM(C40:C43) -> 6937 | D44: =SUM(D40:D43) -> 8527 | E44: =SUM(E40:E43) -> 10205 | F44: =SUM(F40:F43) -> 11827 | G44: =SUM(G40:G43) -> 13590
A46: NPL2 (Gifted & Ergon Operated)
A47: Major Conventional | B47: # | C47: 669 | D47: 816 | E47: 980 | F47: 1139 | G47: 1315
A48: Minor Conventional | B48: # | C48: 1785 | D48: 2159 | E48: 2572 | F48: 2967 | G48: 3429
A49: Major LED | B49: # | C49: 0 | D49: 0 | E49: 0 | F49: 0 | G49: 0
A50: Minor LED | B50: # | C50: 0 | D50: 0 | E50: 0 | F50: 0 | G50: 0
A51: Total | B51: # | C51: =SUM(C47:C50) -> 2454 | D51: =SUM(D47:D50) -> 2975 | E51: =SUM(E47:E50) -> 3552 | F51: =SUM(F47:F50) -> 4106 | G51: =SUM(G47:G50) -> 4744
A52: Total Disposals | B52: # | C52: =SUM(C44,C51) -> 9391 | D52: =SUM(D44,D51) -> 11502 | E52: =SUM(E44,E51) -> 13757 | F52: =SUM(F44,F51) -> 15933 | G52: =SUM(G44,G51) -> 18334
A55: Pricing Allocators
A56: Proportion of asset base related to refurbishment | B56: % | C56: 0.1
A57: Relativity Major to Minor
A58: Opex + tax | B58: # | C58: 1.5
A59: Asset charge | B59: # | C59: 1.8
A61: Price Smoothing Inputs
A62: Expected CPI | B62: % | C62: 0.0237
A63: WACC (Discount rate for smoothing) | B63: % | C63: 0.0467341872 | D63: 0.04540626022 | E63: 0.04407833323 | F63: 0.04275040625 | G63: 0.04142247927 | H63: Source: Public lighting PTRM
A64: X Factors | D64: X_02 | E64: X_03 | F64: X_04 | G64: X_05
A65: X factor Conventional | B65: % | C65: 0.3015402805 | D65: 0 | E65: 0 | F65: 0 | G65: 0 | H65: X factors for 2021-22 to 2024-25 in accordance with AER's Draft Decision for ACS
A66: X factor LED | B66: % | C66: -0.1240847732 | D66: 0 | E66: 0 | F66: 0 | G66: 0 | H66: X factors for 2021-22 to 2024-25 in accordance with AER's Draft Decision for ACS
A68: % of PLAB associated with Poles, cabling and some residual brackets | B68: % | C68: 0.7
A70: Million | C70: 1000000
A72: Price t-1 to be used for price smoothing
A74: NPL1 Conventional | C74: 2019-20 | D74: Source: Approved Ergon Energy's 2019-20 prices in the 2019-20 price schedule
A75: Major | B75: $/day/light Nominal | C75: 1.30966 | D75: Used as starting point for smoothing in accordance with the formula in the Control Mechanism and ACS Draft Determination
A76: Minor | B76: $/day/light Nominal | C76: 0.78028 | D76: Used as starting point for smoothing in accordance with the formula in the Control Mechanism and ACS Draft Determination
A78: NPL2 conventional
A79: Major | B79: $/day/light Nominal | C79: 0.52887 | D79: Used as starting point for smoothing in accordance with the formula in the Control Mechanism and ACS Draft Determination
A80: Minor | B80: $/day/light Nominal | C80: 0.34645 | D80: Used as starting point for smoothing in accordance with the formula in the Control Mechanism and ACS Draft Determination
B82: Note: For LED the price smoothing starting point is 2020-21 as these are new tariffs which will be introduced from 1 July 2020

Sheet Public Lighting Pricing
A1: Public Lighting Price Calculations | B1: Units | C1: 2020-21 | D1: 2021-22 | E1: 2022-23 | F1: 2023-24 | G1: 2024-25
A3: Building Block Revenue - Linked to PL PTRM
A5: Opex Charge
A6: O&M Conventional | B6: $M Nominal | C6: 13.29569687 | D6: 12.47074055 | E6: 11.27349437 | F6: 9.775371548 | G6: 7.934852696 | I6: Updated reflecting the Ergon 2020-25 - Revised Regulatory Proposal - Public Lighting PTRM CON - December 2019.xlsm
A7: O&M LED | B7: $M Nominal | C7: 0.3020364152 | D7: 0.9038626428 | E7: 1.77592496 | F7: 2.913104293 | G7: 4.348197604 | I7: Updated reflecting the Ergon 2020-25 - Revised Regulatory Proposal - Public Lighting PTRM LED - December 2019.xlsm
A8: Carry-over amounts Conventional | B8: $M Nominal | C8: 0 | D8: 0 | E8: 0 | F8: 0 | G8: 0
A9: Carry-over amounts LED | B9: $M Nominal | C9: 0 | D9: 0 | E9: 0 | F9: 0 | G9: 0
A10: Benchmark Tax liability Conventional | B10: $M Nominal | C10: 0 | D10: 0 | E10: 0 | F10: 0 | G10: 0 | I10: Updated reflecting the Ergon 2020-25 - Revised Regulatory Proposal - Public Lighting PTRM CON - December 2019.xlsm
A11: Tax liability attributable to O&M Revenue | B11: $M Nominal | C11: 0 | D11: 0 | E11: 0 | F11: 0 | G11: 0
A12: Tax liability attributable to Capex Revenue | B12: $M Nominal | C12: 0 | D12: 0 | E12: 0 | F12: 0 | G12: 0
A13: Tax liability attributable to Gifted Assets | B13: $M Nominal | C13: =C10 -> 0 | D13: =D10 -> 0 | E13: 0 | F13: 0 | G13: 0
A14: Tax liability attributable to Contributed Assets | B14: $M Nominal | C14: 0 | D14: 0 | E14: 0 | F14: 0 | G14: 0
A15: Benchmark Tax liability LED | B15: $M Nominal | C15: 0.7866040162 | D15: 0.6634043121 | E15: 0.5830061333 | F15: 0.5224646477 | G15: 0.4935519201 | I15: Updated reflecting the Ergon 2020-25 - Revised Regulatory Proposal - Public Lighting PTRM LED - December 2019.xlsm
A16: Tax liability attributable to O&M Revenue | B16: $M Nominal | C16: 0 | D16: 0 | E16: 0 | F16: 0 | G16: 0
A17: Tax liability attributable to Capex Revenue | B17: $M Nominal | C17: 0 | D17: 0 | E17: 0 | F17: 0 | G17: 0
A18: Tax liability attributable to Gifted Assets | B18: $M Nominal | C18: 0.7866040162 | D18: 0.6634043121 | E18: 0.5830061333 | F18: 0.5224646477 | G18: 0.4935519201
A19: Tax liability attributable to Contributed Assets | B19: $M Nominal | C19: 0 | D19: 0 | E19: 0 | F19: 0 | G19: 0
A20: Total Opex Charge Conventional | B20: $M Nominal | C20: =SUM(C6,C8)+C11+C6/(C6+C24+C25)*(C13+C14) -> 13.29569687 | D20: =SUM(D6,D8)+D11+D6/(D6+D24+D25)*(D13+D14) -> 12.47074055 | E20: 11.27349437 | F20: 9.775371548 | G20: 7.934852696
A21: Total Opex Charge LED | B21: $M Nominal | C21: =SUM(C7,C9)+C16+C7/(C7+C28+C29)*(C18+C19) -> 0.9379666118 | D21: =SUM(D7,D9)+D16+D7/(D7+D28+D29)*(D18+D19) -> 1.208366086 | E21: 2.039799498 | F21: 3.151965699 | G21: 4.577756106
A23: Capex Charge Conventional | B23: Flag | C23: 1 | D23: 1 | E23: 1 | F23: 1 | G23: 1
A24: Return on capital | B24: $M Nominal | C24: 4.663071586 | D24: 4.266760155 | E24: 3.869989404 | F24: 3.471538753 | G24: 3.074404031 | I24: Updated reflecting the Ergon 2020-25 - Revised Regulatory Proposal - Public Lighting PTRM CON - December 2019.xlsm
A25: Return of capital | B25: $M Nominal | C25: 6.488433302 | D25: 6.870674985 | E25: 7.268369214 | F25: 7.680762621 | G25: 8.109589197 | I25: Updated reflecting the Ergon 2020-25 - Revised Regulatory Proposal - Public Lighting PTRM CON - December 2019.xlsm
A26: Total Capex Charge Conventional | B26: $M Nominal | C26: =(SUM(C24:C25)+C12+(C24+C25)/(C6+C24+C25)*(C13+C14))*C23 -> 11.15150489 | D26: =(SUM(D24:D25)+D12+(D24+D25)/(D6+D24+D25)*(D13+D14))*D23 -> 11.13743514 | E26: 11.13835862 | F26: 11.15230137 | G26: 11.18399323
A27: Capex Charge LED
A28: Return on capital | B28: $M Nominal | C28: 0.02992445577 | D28: 0.3910067294 | E28: 0.740128254 | F28: 1.12144441 | G28: 1.523665446 | I28: Updated reflecting the Ergon 2020-25 - Revised Regulatory Proposal - Public Lighting PTRM CON - December 2019.xlsm
A29: Return of capital | B29: $M Nominal | C29: 0.04163839902 | D29: 0.6743246981 | E29: 1.407687029 | F29: 2.33732205 | G29: 3.476783406 | I29: Updated reflecting the Ergon 2020-25 - Revised Regulatory Proposal - Public Lighting PTRM CON - December 2019.xlsm
A30: Total Capex Charge LED | B30: $M Nominal | C30: =(SUM(C28:C29)+C17+(C28+C29)/(C7+C28+C29)*(C18+C19))*C23 -> 0.2222366743 | D30: =(SUM(D28:D29)+D17+(D28+D29)/(D7+D28+D29)*(D18+D19))*D23 -> 1.424232296 | E30: 2.466946878 | F30: 3.742369702 | G30: 5.264442271
A32: ARR for Conventional | B32: $M Nominal | C32: =SUM(C20,C26) -> 24.44720176 | D32: =SUM(D20,D26) -> 23.60817569 | E32: 22.41185298 | F32: 20.92767292 | G32: 19.11884592
A33: ARR for LED | B33: $M Nominal | C33: =SUM(C21,C30) -> 1.160203286 | D33: =SUM(D21,D30) -> 2.632598382 | E33: 4.506746376 | F33: 6.894335401 | G33: 9.842198376
A34: ARR for Total | B34: $M Nominal | C34: =C32+C33 -> 25.60740504 | D34: =D32+D33 -> 26.24077408 | E34: =E32+E33 -> 26.91859936 | F34: =F32+F33 -> 27.82200832 | G34: =G32+G33 -> 28.9610443
A36: Opex and Capex Charge Components
A37: Opex Charge for Conventional Lights | B37: $M Nominal | C37: =C20 -> 13.29569687 | D37: 12.47074055 | E37: 11.27349437 | F37: 9.775371548 | G37: 7.934852696
A38: Opex Charge for LED | B38: $M Nominal | C38: 0.9379666118 | D38: 1.208366086 | E38: 2.039799498 | F38: 3.151965699 | G38: 4.577756106
A39: Capex Charge for Conventional Lights | B39: $M Nominal | C39: =C26 -> 11.15150489 | D39: =D26 -> 11.13743514 | E39: 11.13835862 | F39: 11.15230137 | G39: 11.18399323
A40: Capex Charge for LED | B40: $M Nominal | C40: =C30 -> 0.2222366743 | D40: =D30 -> 1.424232296 | E40: =E30 -> 2.466946878 | F40: =F30 -> 3.742369702 | G40: =G30 -> 5.264442271
A42: Public Lights Population
A44: Opening Population Public Lights
A45: NPL1 (Ergon Owned & Operated)
A46: Major Conventional | B46: # | C46: ='Input Data'!C6 -> 26804 | D46: ='Input Data'!D6 -> 24714 | E46: ='Input Data'!E6 -> 21939 | F46: ='Input Data'!F6 -> 18662 | G46: ='Input Data'!G6 -> 14876
A47: Minor Conventional | B47: # | C47: ='Input Data'!C7 -> 69606 | D47: ='Input Data'!D7 -> 64108 | E47: ='Input Data'!E7 -> 56905 | F47: ='Input Data'!F7 -> 48458 | G47: ='Input Data'!G7 -> 38710
A48: Major LED | B48: # | C48: ='Input Data'!C8 -> 1391 | D48: ='Input Data'!D8 -> 3827 | E48: ='Input Data'!E8 -> 6952 | F48: ='Input Data'!F8 -> 10582 | G48: ='Input Data'!G8 -> 14729
A49: Minor LED | B49: # | C49: ='Input Data'!C9 -> 3419 | D49: ='Input Data'!D9 -> 9425 | E49: ='Input Data'!E9 -> 17153 | F49: ='Input Data'!F9 -> 26142 | G49: ='Input Data'!G9 -> 36445
A50: Total | B50: # | C50: =SUM(C46:C49) -> 101220 | D50: =SUM(D46:D49) -> 102074 | E50: =SUM(E46:E49) -> 102949 | F50: =SUM(F46:F49) -> 103844 | G50: =SUM(G46:G49) -> 104760
A52: NPL2 (Gifted & Ergon Operated)
A53: Major Conventional | B53: # | C53: ='Input Data'!C13 -> 13044 | D53: ='Input Data'!D13 -> 12027 | E53: ='Input Data'!E13 -> 10677 | F53: ='Input Data'!F13 -> 9082 | G53: ='Input Data'!G13 -> 7239
A54: Minor Conventional | B54: # | C54: ='Input Data'!C14 -> 33873 | D54: ='Input Data'!D14 -> 31198 | E54: ='Input Data'!E14 -> 27692 | F54: ='Input Data'!F14 -> 23581 | G54: ='Input Data'!G14 -> 18837
A55: Major LED | B55: # | C55: ='Input Data'!C15 -> 677 | D55: ='Input Data'!D15 -> 1863 | E55: ='Input Data'!E15 -> 3383 | F55: ='Input Data'!F15 -> 5150 | G55: ='Input Data'!G15 -> 7167
A56: Minor LED | B56: # | C56: ='Input Data'!C16 -> 1664 | D56: ='Input Data'!D16 -> 4587 | E56: ='Input Data'!E16 -> 8347 | F56: ='Input Data'!F16 -> 12722 | G56: ='Input Data'!G16 -> 17735
A57: Total | B57: # | C57: =SUM(C53:C56) -> 49258 | D57: =SUM(D53:D56) -> 49675 | E57: =SUM(E53:E56) -> 50099 | F57: =SUM(F53:F56) -> 50535 | G57: =SUM(G53:G56) -> 50978
A58: Total Opening Lights | B58: # | C58: =SUM(C50,C57) -> 150478 | D58: =SUM(D50,D57) -> 151749 | E58: =SUM(E50,E57) -> 153048 | F58: =SUM(F50,F57) -> 154379 | G58: =SUM(G50,G57) -> 155738
A60: Plus Additions
A61: NPL1 (Ergon Owned & Operated)
A62: Major Conventional | B62: # | C62: ='Input Data'!C23 -> 0 | D62: ='Input Data'!D23 -> 0 | E62: ='Input Data'!E23 -> 0 | F62: ='Input Data'!F23 -> 0 | G62: ='Input Data'!G23 -> 0
A63: Minor Conventional | B63: # | C63: ='Input Data'!C24 -> 0 | D63: ='Input Data'!D24 -> 0 | E63: ='Input Data'!E24 -> 0 | F63: ='Input Data'!F24 -> 0 | G63: ='Input Data'!G24 -> 0
A64: Major LED | B64: # | C64: ='Input Data'!C25 -> 2087 | D64: ='Input Data'!D25 -> 2547 | E64: ='Input Data'!E25 -> 3035 | F64: ='Input Data'!F25 -> 3509 | G64: ='Input Data'!G25 -> 4010
A65: Minor LED | B65: # | C65: ='Input Data'!C26 -> 5165 | D65: ='Input Data'!D26 -> 6325 | E65: ='Input Data'!E26 -> 7545 | F65: ='Input Data'!F26 -> 8723 | G65: ='Input Data'!G26 -> 10015
A66: Total | B66: # | C66: =SUM(C62:C65) -> 7252 | D66: =SUM(D62:D65) -> 8872 | E66: =SUM(E62:E65) -> 10580 | F66: =SUM(F62:F65) -> 12232 | G66: =SUM(G62:G65) -> 14025
A68: NPL2 (Gifted & Ergon Operated)
A69: Major Conventional | B69: # | C69: ='Input Data'!C30 -> 0 | D69: ='Input Data'!D30 -> 0 | E69: ='Input Data'!E30 -> 0 | F69: ='Input Data'!F30 -> 0 | G69: ='Input Data'!G30 -> 0
A70: Minor Conventional | B70: # | C70: ='Input Data'!C31 -> 0 | D70: ='Input Data'!D31 -> 0 | E70: ='Input Data'!E31 -> 0 | F70: ='Input Data'!F31 -> 0 | G70: ='Input Data'!G31 -> 0
A71: Major LED | B71: # | C71: ='Input Data'!C32 -> 1471 | D71: ='Input Data'!D32 -> 1717 | E71: ='Input Data'!E32 -> 1991 | F71: ='Input Data'!F32 -> 2258 | G71: ='Input Data'!G32 -> 2553
A72: Minor LED | B72: # | C72: ='Input Data'!C33 -> 3580 | D72: ='Input Data'!D33 -> 4208 | E72: ='Input Data'!E33 -> 4899 | F72: ='Input Data'!F33 -> 5561 | G72: ='Input Data'!G33 -> 6335
A73: Total | B73: # | C73: =SUM(C69:C72) -> 5051 | D73: =SUM(D69:D72) -> 5925 | E73: =SUM(E69:E72) -> 6890 | F73: =SUM(F69:F72) -> 7819 | G73: =SUM(G69:G72) -> 8888
A74: Total Additions | B74: # | C74: =SUM(C66,C73) -> 12303 | D74: =SUM(D66,D73) -> 14797 | E74: =SUM(E66,E73) -> 17470 | F74: =SUM(F66,F73) -> 20051 | G74: =SUM(G66,G73) -> 22913
A76: Less Disposals
A77: NPL1 (Ergon Owned & Operated)
A78: Major Conventional | B78: # | C78: ='Input Data'!C40 -> 1927 | D78: ='Input Data'!D40 -> 2377 | E78: ='Input Data'!E40 -> 2865 | F78: ='Input Data'!F40 -> 3329 | G78: ='Input Data'!G40 -> 3820
A79: Minor Conventional | B79: # | C79: ='Input Data'!C41 -> 5010 | D79: ='Input Data'!D41 -> 6150 | E79: ='Input Data'!E41 -> 7340 | F79: ='Input Data'!F41 -> 8498 | G79: ='Input Data'!G41 -> 9770
A80: Major LED | B80: # | C80: ='Input Data'!C42 -> 0 | D80: ='Input Data'!D42 -> 0 | E80: ='Input Data'!E42 -> 0 | F80: ='Input Data'!F42 -> 0 | G80: ='Input Data'!G42 -> 0
A81: Minor LED | B81: # | C81: ='Input Data'!C43 -> 0 | D81: ='Input Data'!D43 -> 0 | E81: ='Input Data'!E43 -> 0 | F81: ='Input Data'!F43 -> 0 | G81: ='Input Data'!G43 -> 0
A82: Total | B82: # | C82: =SUM(C78:C81) -> 6937 | D82: =SUM(D78:D81) -> 8527 | E82: =SUM(E78:E81) -> 10205 | F82: =SUM(F78:F81) -> 11827 | G82: =SUM(G78:G81) -> 13590
A84: NPL2 (Gifted & Ergon Operated)
A85: Major Conventional | B85: # | C85: ='Input Data'!C47 -> 669 | D85: ='Input Data'!D47 -> 816 | E85: ='Input Data'!E47 -> 980 | F85: ='Input Data'!F47 -> 1139 | G85: ='Input Data'!G47 -> 1315
A86: Minor Conventional | B86: # | C86: ='Input Data'!C48 -> 1785 | D86: ='Input Data'!D48 -> 2159 | E86: ='Input Data'!E48 -> 2572 | F86: ='Input Data'!F48 -> 2967 | G86: ='Input Data'!G48 -> 3429
A87: Major LED | B87: # | C87: ='Input Data'!C49 -> 0 | D87: ='Input Data'!D49 -> 0 | E87: ='Input Data'!E49 -> 0 | F87: ='Input Data'!F49 -> 0 | G87: ='Input Data'!G49 -> 0
A88: Minor LED | B88: # | C88: ='Input Data'!C50 -> 0 | D88: ='Input Data'!D50 -> 0 | E88: ='Input Data'!E50 -> 0 | F88: ='Input Data'!F50 -> 0 | G88: ='Input Data'!G50 -> 0
A89: Total | B89: # | C89: =SUM(C85:C88) -> 2454 | D89: =SUM(D85:D88) -> 2975 | E89: =SUM(E85:E88) -> 3552 | F89: =SUM(F85:F88) -> 4106 | G89: =SUM(G85:G88) -> 4744
A90: Total Disposals | B90: # | C90: =SUM(C82,C89) -> 9391 | D90: =SUM(D82,D89) -> 11502 | E90: =SUM(E82,E89) -> 13757 | F90: =SUM(F82,F89) -> 15933 | G90: =SUM(G82,G89) -> 18334
A92: Closing Population Public Lights
A93: NPL1 (Ergon Owned & Operated)
A94: Major Conventional | B94: # | C94: =(C46+C62-C78) -> 24877 | D94: 22337 | E94: 19074 | F94: 15333 | G94: 11056
A95: Minor Conventional | B95: # | C95: 64596 | D95: 57958 | E95: 49565 | F95: 39960 | G95: 28940
A96: Major LED | B96: # | C96: 3478 | D96: 6374 | E96: 9987 | F96: 14091 | G96: 18739
A97: Minor LED | B97: # | C97: 8584 | D97: 15750 | E97: 24698 | F97: 34865 | G97: 46460
A98: Total | B98: # | C98: =SUM(C94:C97) -> 101535 | D98: =SUM(D94:D97) -> 102419 | E98: =SUM(E94:E97) -> 103324 | F98: =SUM(F94:F97) -> 104249 | G98: =SUM(G94:G97) -> 105195
A100: NPL2 (Gifted & Ergon Operated)
A101: Major Conventional | B101: # | C101: =(C53+C69-C85) -> 12375 | D101: 11211 | E101: 9697 | F101: 7943 | G101: 5924
A102: Minor Conventional | B102: # | C102: 32088 | D102: 29039 | E102: 25120 | F102: 20614 | G102: 15408
A103: Major LED | B103: # | C103: 2148 | D103: 3580 | E103: 5374 | F103: 7408 | G103: 9720
A104: Minor LED | B104: # | C104: 5244 | D104: 8795 | E104: 13246 | F104: 18283 | G104: 24070
A105: Total | B105: # | C105: =SUM(C101:C104) -> 51855 | D105: =SUM(D101:D104) -> 52625 | E105: =SUM(E101:E104) -> 53437 | F105: =SUM(F101:F104) -> 54248 | G105: =SUM(G101:G104) -> 55122
A106: Grand Total | B106: # | C106: =SUM(C98,C105) -> 153390 | D106: =SUM(D98,D105) -> 155044 | E106: =SUM(E98,E105) -> 156761 | F106: =SUM(F98,F105) -> 158497 | G106: =SUM(G98,G105) -> 160317
A108: Average No of Lights
A109: NPL1 (Ergon Owned & Operated)
A110: Major Conventional | B110: # | C110: =AVERAGE(C46,C94) -> 25840.5 | D110: 23525.5 | E110: 20506.5 | F110: 16997.5 | G110: 12966
A111: Minor Conventional | B111: # | C111: 67101 | D111: 61033 | E111: 53235 | F111: 44209 | G111: 33825
A112: Major LED | B112: # | C112: 2434.5 | D112: 5100.5 | E112: 8469.5 | F112: 12336.5 | G112: 16734
A113: Minor LED | B113: # | C113: 6001.5 | D113: 12587.5 | E113: 20925.5 | F113: 30503.5 | G113: 41452.5
A114: Total | B114: # | C114: =SUM(C110:C113) -> 101377.5 | D114: =SUM(D110:D113) -> 102246.5 | E114: =SUM(E110:E113) -> 103136.5 | F114: =SUM(F110:F113) -> 104046.5 | G114: =SUM(G110:G113) -> 104977.5
A116: NPL2 (Gifted & Ergon Operated)
A117: Major Conventional | B117: # | C117: =AVERAGE(C53,C101) -> 12709.5 | D117: 11619 | E117: 10187 | F117: 8512.5 | G117: 6581.5
A118: Minor Conventional | B118: # | C118: 32980.5 | D118: 30118.5 | E118: 26406 | F118: 22097.5 | G118: 17122.5
A119: Major LED | B119: # | C119: 1412.5 | D119: 2721.5 | E119: 4378.5 | F119: 6279 | G119: 8443.5
A120: Minor LED | B120: # | C120: 3454 | D120: 6691 | E120: 10796.5 | F120: 15502.5 | G120: 20902.5
A121: Total | B121: # | C121: =SUM(C117:C120) -> 50556.5 | D121: =SUM(D117:D120) -> 51150 | E121: =SUM(E117:E120) -> 51768 | F121: =SUM(F117:F120) -> 52391.5 | G121: =SUM(G117:G120) -> 53050
A122: Grand total | B122: # | C122: =SUM(C114,C121) -> 151934 | D122: =SUM(D114,D121) -> 153396.5 | E122: =SUM(E114,E121) -> 154904.5 | F122: =SUM(F114,F121) -> 156438 | G122: =SUM(G114,G121) -> 158027.5
A124: 2020-25 TSS Pricing Methodology
A125: Major Conventional | B125: # | C125: =SUM(C110+C117) -> 38550 | D125: =SUM(D110+D117) -> 35144.5 | E125: 30693.5 | F125: 25510 | G125: 19547.5
A126: Minor Conventional | B126: # | C126: 100081.5 | D126: 91151.5 | E126: 79641 | F126: 66306.5 | G126: 50947.5
A127: Major LED | B127: # | C127: 3847 | D127: 7822 | E127: 12848 | F127: 18615.5 | G127: 25177.5
A128: Minor LED | B128: # | C128: 9455.5 | D128: 19278.5 | E128: 31722 | F128: 46006 | G128: 62355
A129: Total | B129: # | C129: =SUM(C125:C128) -> 151934 | D129: =SUM(D125:D128) -> 153396.5 | E129: =SUM(E125:E128) -> 154904.5 | F129: =SUM(F125:F128) -> 156438 | G129: =SUM(G125:G128) -> 158027.5
A131: Weighted Average No of Lights
A132: Major Conventional | C132: =ROUND(C125*'Input Data'!$C$59,0) -> 69390 | D132: =ROUND(D125*'Input Data'!$C$59,0) -> 63260 | E132: =ROUND(E125*'Input Data'!$C$59,0) -> 55248 | F132: =ROUND(F125*'Input Data'!$C$59,0) -> 45918 | G132: =ROUND(G125*'Input Data'!$C$59,0) -> 35186
A133: Minor Conventional | C133: =C126 -> 100081.5 | D133: =D126 -> 91151.5 | E133: =E126 -> 79641 | F133: =F126 -> 66306.5 | G133: =G126 -> 50947.5
A134: Major LED | C134: =ROUND(C127*'Input Data'!$C$59,0) -> 6925 | D134: =ROUND(D127*'Input Data'!$C$59,0) -> 14080 | E134: =ROUND(E127*'Input Data'!$C$59,0) -> 23126 | F134: =ROUND(F127*'Input Data'!$C$59,0) -> 33508 | G134: =ROUND(G127*'Input Data'!$C$59,0) -> 45320
A135: Minor LED | C135: =C128 -> 9455.5 | D135: =D128 -> 19278.5 | E135: =E128 -> 31722 | F135: =F128 -> 46006 | G135: =G128 -> 62355
A136: Total | C136: =SUM(C132:C135) -> 185852 | D136: =SUM(D132:D135) -> 187770 | E136: =SUM(E132:E135) -> 189737 | F136: =SUM(F132:F135) -> 191738.5 | G136: =SUM(G132:G135) -> 193808.5
A138: Price Components
A140: Opex Charge
A141: NPL1 (Ergon Owned & Operated)
A142: Major Conventional | B142: $/light Nominal | C142: =C$37*Million/(C$125+C$126/'Input Data'!$C$58) -> 126.2997109 | D142: =D$37*Million/(D$125+D$126/'Input Data'!$C$58) -> 130.022509 | E142: =E$37*Million/(E$125+E$126/'Input Data'!$C$58) -> 134.5486423 | F142: =F$37*Million/(F$125+F$126/'Input Data'!$C$58) -> 140.2203977 | G142: =G$37*Million/(G$125+G$126/'Input Data'!$C$58) -> 148.2803587
A143: Minor Conventional | B143: $/light Nominal | C143: =C142/'Input Data'!$C$58 -> 84.19980729 | D143: =D142/'Input Data'!$C$58 -> 86.68167266 | E143: =E142/'Input Data'!$C$58 -> 89.69909486 | F143: =F142/'Input Data'!$C$58 -> 93.48026515 | G143: =G142/'Input Data'!$C$58 -> 98.85357248
A144: Major LED | B144: $/light Nominal | C144: =C$38*Million/(C$127+C$128/'Input Data'!$C$58) -> 92.40443437 | D144: =D$38*Million/(D$127+D$128/'Input Data'!$C$58) -> 58.44764455 | E144: =E$38*Million/(E$127+E$128/'Input Data'!$C$58) -> 60.00116185 | F144: =F$38*Million/(F$127+F$128/'Input Data'!$C$58) -> 63.95234022 | G144: =G$38*Million/(G$127+G$128/'Input Data'!$C$58) -> 68.58318447
A145: Minor LED | B145: $/light Nominal | C145: =C144/'Input Data'!$C$58 -> 61.60295625 | D145: =D144/'Input Data'!$C$58 -> 38.96509637 | E145: =E144/'Input Data'!$C$58 -> 40.00077456 | F145: =F144/'Input Data'!$C$58 -> 42.63489348 | G145: =G144/'Input Data'!$C$58 -> 45.72212298
A147: NPL2 (Gifted & Ergon Operated)
A148: Major Conventional | B148: $/light Nominal | C148: =C142 -> 126.2997109 | D148: 130.022509 | E148: 134.5486423 | F148: 140.2203977 | G148: 148.2803587
A149: Minor Conventional | B149: $/light Nominal | C149: 84.19980729 | D149: 86.68167266 | E149: 89.69909486 | F149: 93.48026515 | G149: 98.85357248
A150: Major LED | B150: $/light Nominal | C150: 92.40443437 | D150: 58.44764455 | E150: 60.00116185 | F150: 63.95234022 | G150: 68.58318447
A151: Minor LED | B151: $/light Nominal | C151: 61.60295625 | D151: 38.96509637 | E151: 40.00077456 | F151: 42.63489348 | G151: 45.72212298
A153: Capex Charge
A154: NPL1 (Ergon Owned & Operated)
A155: Major Conventional | B155: $/light Nominal | C155: =C$39*Million/(C$110+C$111/'Input Data'!$C$59)*(1-'Input Data'!$C$56) -> 159.0072862 | D155: =D$39*Million/(D$110+D$111/'Input Data'!$C$59)*(1-'Input Data'!$C$56) -> 174.5292795 | E155: =E$39*Million/(E$110+E$111/'Input Data'!$C$59)*(1-'Input Data'!$C$56) -> 200.1641875 | F155: =F$39*Million/(F$110+F$111/'Input Data'!$C$59)*(1-'Input Data'!$C$56) -> 241.5192699 | G155: =G$39*Million/(G$110+G$111/'Input Data'!$C$59)*(1-'Input Data'!$C$56) -> 316.9500458
A156: Minor Conventional | B156: $/light Nominal | C156: =ROUND(C155/'Input Data'!$C$59,2) -> 88.34 | D156: =ROUND(D155/'Input Data'!$C$59,2) -> 96.96 | E156: =ROUND(E155/'Input Data'!$C$59,2) -> 111.2 | F156: =ROUND(F155/'Input Data'!$C$59,2) -> 134.18 | G156: =ROUND(G155/'Input Data'!$C$59,2) -> 176.08
A157: Major LED | B157: $/light Nominal | C157: =C$40*Million/(C$112+C$113/'Input Data'!$C$59)*(1-'Input Data'!$C$56) -> 34.67231138 | D157: =D$40*Million/(D$112+D$113/'Input Data'!$C$59)*(1-'Input Data'!$C$56) -> 105.9910843 | E157: =E$40*Million/(E$112+E$113/'Input Data'!$C$59)*(1-'Input Data'!$C$56) -> 110.4890143 | F157: =F$40*Million/(F$112+F$113/'Input Data'!$C$59)*(1-'Input Data'!$C$56) -> 115.0205072 | G157: =G$40*Million/(G$112+G$113/'Input Data'!$C$59)*(1-'Input Data'!$C$56) -> 119.1554507
A158: Minor LED | B158: $/light Nominal | C158: =ROUND(C157/'Input Data'!$C$59,2) -> 19.26 | D158: =ROUND(D157/'Input Data'!$C$59,2) -> 58.88 | E158: =ROUND(E157/'Input Data'!$C$59,2) -> 61.38 | F158: =ROUND(F157/'Input Data'!$C$59,2) -> 63.9 | G158: =ROUND(G157/'Input Data'!$C$59,2) -> 66.2
A160: NPL2 (Gifted & Ergon Operated)
A161: Major Conventional | B161: $/light Nominal | C161: 0 | D161: 0 | E161: 0 | F161: 0 | G161: 0 | I161: Capex is not allocated to NPL2
A162: Minor Conventional | B162: $/light Nominal | C162: 0 | D162: 0 | E162: 0 | F162: 0 | G162: 0
A163: Major LED | B163: $/light Nominal | C163: 0 | D163: 0 | E163: 0 | F163: 0 | G163: 0
A164: Minor LED | B164: $/light Nominal | C164: 0 | D164: 0 | E164: 0 | F164: 0 | G164: 0
A166: Refurbishment Charge
A167: NPL1 (Ergon Owned & Operated)
A168: Major Conventional | B168: $/light Nominal | C168: =C$39*Million/(C$125+C$126/'Input Data'!$C$59)*'Input Data'!$C$56 -> 11.84429759 | D168: =D$39*Million/(D$125+D$126/'Input Data'!$C$59)*'Input Data'!$C$56 -> 12.9830811 | E168: =E$39*Million/(E$125+E$126/'Input Data'!$C$59)*'Input Data'!$C$56 -> 14.86333276 | F168: =F$39*Million/(F$125+F$126/'Input Data'!$C$59)*'Input Data'!$C$56 -> 17.88748667 | G168: =G$39*Million/(G$125+G$126/'Input Data'!$C$59)*'Input Data'!$C$56 -> 23.37221252
A169: Minor Conventional | B169: $/light Nominal | C169: =ROUND(C168/'Input Data'!$C$59,2) -> 6.58 | D169: =ROUND(D168/'Input Data'!$C$59,2) -> 7.21 | E169: =ROUND(E168/'Input Data'!$C$59,2) -> 8.26 | F169: =ROUND(F168/'Input Data'!$C$59,2) -> 9.94 | G169: =ROUND(G168/'Input Data'!$C$59,2) -> 12.98
A170: Major LED | B170: $/light Nominal | C170: =C$40*Million/(C$127+C$128/'Input Data'!$C$59)*'Input Data'!$C$56 -> 2.442146347 | D170: =D$40*Million/(D$127+D$128/'Input Data'!$C$59)*'Input Data'!$C$56 -> 7.685144338 | E170: =E$40*Million/(E$127+E$128/'Input Data'!$C$59)*'Input Data'!$C$56 -> 8.095959736 | F170: =F$40*Million/(F$127+F$128/'Input Data'!$C$59)*'Input Data'!$C$56 -> 8.471808657 | G170: =G$40*Million/(G$127+G$128/'Input Data'!$C$59)*'Input Data'!$C$56 -> 8.800594465
A171: Minor LED | B171: $/light Nominal | C171: =ROUND(C170/'Input Data'!$C$59,2) -> 1.36 | D171: =ROUND(D170/'Input Data'!$C$59,2) -> 4.27 | E171: =ROUND(E170/'Input Data'!$C$59,2) -> 4.5 | F171: =ROUND(F170/'Input Data'!$C$59,2) -> 4.71 | G171: =ROUND(G170/'Input Data'!$C$59,2) -> 4.89
A173: NPL2 (Gifted & Ergon Operated)
A174: Major Conventional | B174: $/light Nominal | C174: =C168 -> 11.84429759 | D174: =D168 -> 12.9830811 | E174: 14.86333276 | F174: 17.88748667 | G174: 23.37221252
A175: Minor Conventional | B175: $/light Nominal | C175: =C169 -> 6.58 | D175: 7.21 | E175: 8.26 | F175: 9.94 | G175: 12.98
A176: Major LED | B176: $/light Nominal | C176: 2.442146347 | D176: 7.685144338 | E176: 8.095959736 | F176: 8.471808657 | G176: 8.800594465
A177: Minor LED | B177: $/light Nominal | C177: 1.36 | D177: 4.27 | E177: 4.5 | F177: 4.71 | G177: 4.89
A179: Pricing Days in Year | B179: # | C179: 365.25 | D179: 365.25 | E179: 365.25 | F179: 365.25 | G179: 365.25
A181: Unsmoothed Prices
A183: NPL1 (Ergon Owned & Operated)
A184: Major Conventional | B184: $/day/light Nominal | C184: =SUM(C142,C155,C168)/C$179 -> 0.8135559063 | D184: =SUM(D142,D155,D168)/D$179 -> 0.8693630925 | E184: 0.9570873717 | F184: 1.094119519 | G184: 1.33772106
A185: Minor Conventional | B185: $/day/light Nominal | C185: 0.4904033054 | D185: 0.5225234022 | E185: 0.5726463925 | F185: 0.650514073 | G185: 0.788264401
A186: Major LED | B186: $/day/light Nominal | C186: 0.3546034007 | D186: 0.4712494818 | E186: 0.4889421928 | F186: 0.5131954991 | G186: 0.5380950844
A187: Minor LED | B187: $/day/light Nominal | C187: 0.2251141855 | D187: 0.279575897 | E187: 0.289885762 | F187: 0.3045719192 | G187: 0.3198141629
A189: NPL2 (Gifted & Ergon Operated)
A190: Major Conventional | B190: $/day/light Nominal | C190: =SUM(C148,C174)/C$179 -> 0.3782176825 | D190: =SUM(D148,D174)/D$179 -> 0.3915279674 | E190: 0.4090676935 | F190: 0.4328757957 | G190: 0.4699591273
A191: Minor Conventional | B191: $/day/light Nominal | C191: 0.2485415668 | D191: 0.2570613899 | E191: 0.268197385 | F191: 0.2831492544 | G191: 0.3061836344
A192: Major LED | B192: $/day/light Nominal | C192: 0.2596757857 | D192: 0.1810617081 | E192: 0.1864397579 | F192: 0.198286513 | G192: 0.2118652401
A193: Minor LED | B193: $/day/light Nominal | C193: 0.1723831793 | D193: 0.1183712426 | E193: 0.1218364807 | F193: 0.1296232539 | G193: 0.1385684407
A195: NPL4 (Gifted & Ergon Operated)
A196: Major LED | B196: $/day/light Nominal | C196: =(C192*0.9)+((C186-C192)*0.7) -> 0.3001575376 | D196: =(D192*0.9)+((D186-D192)*0.7) -> 0.3660869789 | E196: 0.3795474865 | F196: =(F192*0.9)+((F186-F192)*0.7) -> 0.398894152 | G196: =(G192*0.9)+((G186-G192)*0.7) -> 0.4190396071
A197: Minor LED | B197: $/day/light Nominal | C197: =(C193*0.9)+((C187-C193)*0.7) -> 0.1920565657 | D197: =(D193*0.9)+((D187-D193)*0.7) -> 0.2193773764 | E197: 0.2272873295 | F197: 0.2391249942 | G197: 0.2515836021
A199: Smoothed Prices
A201: NPL1 (Ergon Owned & Operated)
A202: Major Conventional | B202: $/day/light Nominal | C202: =ROUND('Input Data'!C75*(1+'Input Data'!$C$62)*(1-'Input Data'!C$65),5) -> 0.93642 | D202: =ROUND(C202*(1+'Input Data'!$C$62)*(1-'Input Data'!D$65),5) -> 0.95861 | E202: =ROUND(D202*(1+'Input Data'!$C$62)*(1-'Input Data'!E$65),5) -> 0.98133 | F202: =ROUND(E202*(1+'Input Data'!$C$62)*(1-'Input Data'!F$65),5) -> 1.00459 | G202: =ROUND(F202*(1+'Input Data'!$C$62)*(1-'Input Data'!G$65),5) -> 1.0284
A203: Minor Conventional | B203: $/day/light Nominal | C203: =ROUND('Input Data'!C76*(1+'Input Data'!$C$62)*(1-'Input Data'!C$65),5) -> 0.55791 | D203: =ROUND(C203*(1+'Input Data'!$C$62)*(1-'Input Data'!D$65),5) -> 0.57113 | E203: =ROUND(D203*(1+'Input Data'!$C$62)*(1-'Input Data'!E$65),5) -> 0.58467 | F203: =ROUND(E203*(1+'Input Data'!$C$62)*(1-'Input Data'!F$65),5) -> 0.59853 | G203: =ROUND(F203*(1+'Input Data'!$C$62)*(1-'Input Data'!G$65),5) -> 0.61272
A204: Major LED | B204: $/day/light Nominal | C204: =ROUND(C186*(1-'Input Data'!$C$66),5) -> 0.3986 | D204: =ROUND(C204*(1+'Input Data'!$C$62)*(1-'Input Data'!D$66),5) -> 0.40805 | E204: =ROUND(D204*(1+'Input Data'!$C$62)*(1-'Input Data'!E$66),5) -> 0.41772 | F204: =ROUND(E204*(1+'Input Data'!$C$62)*(1-'Input Data'!F$66),5) -> 0.42762 | G204: =ROUND(F204*(1+'Input Data'!$C$62)*(1-'Input Data'!G$66),5) -> 0.43775
A205: Minor LED | B205: $/day/light Nominal | C205: =ROUND(C187*(1-'Input Data'!C$66),5) -> 0.25305 | D205: =ROUND(C205*(1+'Input Data'!$C$62)*(1-'Input Data'!D$66),5) -> 0.25905 | E205: =ROUND(D205*(1+'Input Data'!$C$62)*(1-'Input Data'!E$66),5) -> 0.26519 | F205: =ROUND(E205*(1+'Input Data'!$C$62)*(1-'Input Data'!F$66),5) -> 0.27148 | G205: =ROUND(F205*(1+'Input Data'!$C$62)*(1-'Input Data'!G$66),5) -> 0.27791
A207: NPL2 (Gifted & Ergon Operated)
A208: Major Conventional | B208: $/day/light Nominal | C208: =ROUND('Input Data'!$C$79*(1+'Input Data'!$C$62)*(1-'Input Data'!C$65),5) -> 0.37815 | D208: =ROUND(C208*(1+'Input Data'!$C$62)*(1-'Input Data'!D$65),5) -> 0.38711 | E208: =ROUND(D208*(1+'Input Data'!$C$62)*(1-'Input Data'!E$65),5) -> 0.39628 | F208: =ROUND(E208*(1+'Input Data'!$C$62)*(1-'Input Data'!F$65),5) -> 0.40567 | G208: =ROUND(F208*(1+'Input Data'!$C$62)*(1-'Input Data'!G$65),5) -> 0.41528
A209: Minor Conventional | B209: $/day/light Nominal | C209: =ROUND('Input Data'!C80*(1+'Input Data'!$C$62)*(1-'Input Data'!C$65),5) -> 0.24772 | D209: =ROUND(C209*(1+'Input Data'!$C$62)*(1-'Input Data'!D$65),5) -> 0.25359 | E209: =ROUND(D209*(1+'Input Data'!$C$62)*(1-'Input Data'!E$65),5) -> 0.2596 | F209: =ROUND(E209*(1+'Input Data'!$C$62)*(1-'Input Data'!F$65),5) -> 0.26575 | G209: =ROUND(F209*(1+'Input Data'!$C$62)*(1-'Input Data'!G$65),5) -> 0.27205
A210: Major LED | B210: $/day/light Nominal | C210: =ROUND(C192*(1-'Input Data'!C$66),5) -> 0.2919 | D210: =ROUND(C210*(1+'Input Data'!$C$62)*(1-'Input Data'!D$66),5) -> 0.29882 | E210: =ROUND(D210*(1+'Input Data'!$C$62)*(1-'Input Data'!E$66),5) -> 0.3059 | F210: =ROUND(E210*(1+'Input Data'!$C$62)*(1-'Input Data'!F$66),5) -> 0.31315 | G210: =ROUND(F210*(1+'Input Data'!$C$62)*(1-'Input Data'!G$66),5) -> 0.32057
A211: Minor LED | B211: $/day/light Nominal | C211: =ROUND(C193*(1-'Input Data'!C$66),5) -> 0.19377 | D211: =ROUND(C211*(1+'Input Data'!$C$62)*(1-'Input Data'!D$66),5) -> 0.19836 | E211: =ROUND(D211*(1+'Input Data'!$C$62)*(1-'Input Data'!E$66),5) -> 0.20306 | F211: =ROUND(E211*(1+'Input Data'!$C$62)*(1-'Input Data'!F$66),5) -> 0.20787 | G211: =ROUND(F211*(1+'Input Data'!$C$62)*(1-'Input Data'!G$66),5) -> 0.2128
A213: NPL4 (Gifted & Ergon Operated)
A214: Major LED | B214: $/day/light Nominal | C214: =(C210*0.9)+((C204-C210)*0.7) -> 0.3374 | D214: =(D210*0.9)+((D204-D210)*0.7) -> 0.345399 | E214: 0.353584 | F214: 0.361964 | G214: =(G210*0.9)+((G204-G210)*0.7) -> 0.370539
A215: Minor LED | B215: $/day/light Nominal | C215: =(C211*0.9)+((C205-C211)*0.7) -> 0.215889 | D215: =(D211*0.9)+((D205-D211)*0.7) -> 0.221007 | E215: 0.226245 | F215: 0.23161 | G215: 0.237097
A217: Recovered Revenue
A218: 1 + WACC | C218: =1+'Input Data'!C63 -> 1.046734187 | D218: =1+'Input Data'!D63 -> 1.04540626 | E218: =1+'Input Data'!E63 -> 1.044078333 | F218: =1+'Input Data'!F63 -> 1.042750406 | G218: =1+'Input Data'!G63 -> 1.041422479
A219: Recovered revenue Conventional | B219: $M Nominal | C219: =(SUMPRODUCT(C202:C203,C110:C111)+SUMPRODUCT(C208:C209,C117:C118))*C179/Million -> 27.25126846 | D219: =(SUMPRODUCT(D202:D203,D110:D111)+SUMPRODUCT(D208:D209,D117:D118))*D179/Million -> 25.40136178 | E219: =(SUMPRODUCT(E202:E203,E110:E111)+SUMPRODUCT(E208:E209,E117:E118))*E179/Million -> 22.69680048 | F219: =(SUMPRODUCT(F202:F203,F110:F111)+SUMPRODUCT(F208:F209,F117:F118))*F179/Million -> 19.30770225 | G219: =(SUMPRODUCT(G202:G203,G110:G111)+SUMPRODUCT(G208:G209,G117:G118))*G179/Million -> 15.1399156
A220: NPV of recovered revenue Conventional | B220: $M Nominal | C220: =SUMPRODUCT(C219:G219, C229:G229) -> 97.52336935
A221: NPV of revenue requirement Conventional | B221: $M Nominal | C221: =SUMPRODUCT(C32:G32, C229:G229) -> 97.5232045
A222: Difference Conventional | B222: $M Nominal | C222: =C220-C221 -> 0.0001648453985
A224: Recovered revenue LED | B224: $M Nominal | C224: =(SUMPRODUCT(C204:C205,C112:C113)+SUMPRODUCT(C210:C211,C119:C120))*C179/Million -> 1.304184151 | D224: =(SUMPRODUCT(D204:D205,D112:D113)+SUMPRODUCT(D210:D211,D119:D120))*D179/Million -> 2.732989075 | E224: =(SUMPRODUCT(E204:E205,E112:E113)+SUMPRODUCT(E210:E211,E119:E120))*E179/Million -> 4.609028872 | F224: =(SUMPRODUCT(F204:F205,F112:F113)+SUMPRODUCT(F210:F211,F119:F120))*F179/Million -> 6.846683509 | G224: =(SUMPRODUCT(G204:G205,G112:G113)+SUMPRODUCT(G210:G211,G119:G120))*G179/Million -> 9.496557552
A225: NPV of recovered revenue LED | B225: $M Nominal | C225: =SUMPRODUCT(C224:G224, C229:G229) -> 21.17902753
A226: NPV of revenue requirement LED | B226: $M Nominal | C226: =SUMPRODUCT(C33:G33, C229:G229) -> 21.17879388
A227: Difference LED | B227: $M Nominal | C227: =C225-C226 -> 0.0002336476516
A229: Discount Factor | C229: =1/PRODUCT($C218:C218) -> 0.9553523829 | D229: =1/PRODUCT($C218:D218) -> 0.9138575301 | E229: =1/PRODUCT($C218:E218) -> 0.8752767881 | F229: =1/PRODUCT($C218:F218) -> 0.8393924211 | G229: =1/PRODUCT($C218:G218) -> 0.8060056681

Sheet Output Tables
A1: Public Lighting Prices | B1: 2020-21 | D1: 2021-22 | F1: 2022-23 | H1: 2023-24 | J1: 2024-25
B2: Conventional | C2: LED | D2: Conventional | E2: LED | F2: Conventional | G2: LED | H2: Conventional | I2: LED | J2: Conventional | K2: LED
A3: NPL1 (Ergon Owned & Operated)
A4: Major | B4: ='Public Lighting Pricing'!C202 -> 0.93642 | C4: ='Public Lighting Pricing'!C204 -> 0.3986 | D4: ='Public Lighting Pricing'!D202 -> 0.95861 | E4: ='Public Lighting Pricing'!D204 -> 0.40805 | F4: ='Public Lighting Pricing'!E202 -> 0.98133 | G4: ='Public Lighting Pricing'!E204 -> 0.41772 | H4: ='Public Lighting Pricing'!F202 -> 1.00459 | I4: ='Public Lighting Pricing'!F204 -> 0.42762 | J4: ='Public Lighting Pricing'!G202 -> 1.0284 | K4: ='Public Lighting Pricing'!G204 -> 0.43775
A5: Minor | B5: ='Public Lighting Pricing'!C203 -> 0.55791 | C5: ='Public Lighting Pricing'!C205 -> 0.25305 | D5: ='Public Lighting Pricing'!D203 -> 0.57113 | E5: ='Public Lighting Pricing'!D205 -> 0.25905 | F5: ='Public Lighting Pricing'!E203 -> 0.58467 | G5: ='Public Lighting Pricing'!E205 -> 0.26519 | H5: ='Public Lighting Pricing'!F203 -> 0.59853 | I5: ='Public Lighting Pricing'!F205 -> 0.27148 | J5: ='Public Lighting Pricing'!G203 -> 0.61272 | K5: ='Public Lighting Pricing'!G205 -> 0.27791
A6: NPL2 (Gifted & Ergon Operated)
A7: Major | B7: ='Public Lighting Pricing'!C208 -> 0.37815 | C7: ='Public Lighting Pricing'!C210 -> 0.2919 | D7: ='Public Lighting Pricing'!D208 -> 0.38711 | E7: ='Public Lighting Pricing'!D210 -> 0.29882 | F7: ='Public Lighting Pricing'!E208 -> 0.39628 | G7: ='Public Lighting Pricing'!E210 -> 0.3059 | H7: ='Public Lighting Pricing'!F208 -> 0.40567 | I7: ='Public Lighting Pricing'!F210 -> 0.31315 | J7: ='Public Lighting Pricing'!G208 -> 0.41528 | K7: ='Public Lighting Pricing'!G210 -> 0.32057
A8: Minor | B8: ='Public Lighting Pricing'!C209 -> 0.24772 | C8: ='Public Lighting Pricing'!C211 -> 0.19377 | D8: ='Public Lighting Pricing'!D209 -> 0.25359 | E8: ='Public Lighting Pricing'!D211 -> 0.19836 | F8: ='Public Lighting Pricing'!E209 -> 0.2596 | G8: ='Public Lighting Pricing'!E211 -> 0.20306 | H8: ='Public Lighting Pricing'!F209 -> 0.26575 | I8: ='Public Lighting Pricing'!F211 -> 0.20787 | J8: ='Public Lighting Pricing'!G209 -> 0.27205 | K8: ='Public Lighting Pricing'!G211 -> 0.2128
A9: NPL4
A10: Major | C10: ='Public Lighting Pricing'!C214 -> 0.3374 | E10: ='Public Lighting Pricing'!D214 -> 0.345399 | G10: ='Public Lighting Pricing'!E214 -> 0.353584 | I10: ='Public Lighting Pricing'!F214 -> 0.361964 | K10: ='Public Lighting Pricing'!G214 -> 0.370539
A11: Minor | C11: ='Public Lighting Pricing'!C215 -> 0.215889 | E11: ='Public Lighting Pricing'!D215 -> 0.221007 | G11: ='Public Lighting Pricing'!E215 -> 0.226245 | I11: ='Public Lighting Pricing'!F215 -> 0.23161 | K11: ='Public Lighting Pricing'!G215 -> 0.237097

Sheet Changes register
A1: Date | B1: Type of change | C1: Tab | D1: Cell range | E1: Description
A2: 2019-11-05 | B2: Removal of PL contributed assets | C2: Input Data | D2: A66:G76 | E2: Customer contributions not used in the pricing model and not required. In removing them, there is no impact on the calculations
A3: 2019-11-05 | B3: Adjustments to quantities | C3: Public Lighting Pricing | D3: C155:G158 | E3: Removal of the contributed public lighting assets from the quantities used to calculate the Capex component of the NPL1 tariff
A4: 2019-11-05 | B4: WACC | C4: Input Data | D4: C75:G75 | E4: Addition of discount rates for smoothing (WACC) for years 2 to 5
A5: 2019-11-08 | B5: Alignment to PTRM | C5: Public Lighting Pricing | D5: C10:G19 | E5: Removal of pro-rata allocation of tax builiding block for LED public lighting to Conventional public lighting
A6: 2019-11-11 | B6: Simplified volumes | C6: Input Data | E6: Volumes for Conventional: (SV) and (non SV) consolidated into a single volume
A7: 2019-11-10 | B7: VBA | C7: VBA | E7: Removed the VBA script and replace by 2 goalseek macros to calculate the z factors for conventional and LED lights
A8: 2019-11-12 | B8: Smoothing formula for conventional lights | C8: Public Lighting Pricing | D8: C203:G203; C204:G204; C209:G209; C201:G210 | E8: Adjusted formula to comply with F&A: Pt-1*(1+CPI)*(1-X) for conventional lights
A9: 2019-11-12 | B9: Smoothing formula for conventional lights | C9: Public Lighting Pricing | D9: C205:G205; C206:G206; C211:G211; C212:G212 | E9: Given there is no price in Pt-1 for LED, the above formula stat Pt: Pt*(1-X) in first year then it becomes Pt*(1+CPI)*(1-X)
A10: 2019-11-11 | B10: Changes in volumes | C10: Input data | D10: C6:G16 | E10: Reflects updates in LED volumes
A11: 2019-11-11 | B11: Changes in capex and opex | C11: Public Lighting Pricing | D11: C6:G29 | E11: Reflects updates to LED capex and opex
A12: 2019-11-12 | B12: Change to formula | C12: Public Lighting Pricing | D12: C168:G168; C170:G170 | E12: Refurbishment capex was initially recovered from NPL1 volumes when it should have been allocated to NPL1 and NPL2. This had the effect to recover too much capex from NPL2 lights.
